bitfinex-derivatives/quotes_SOLF0:USTF0_20251125
["timestamp","ask_amount","ask_price","bid_price","bid_amount"]
[1764090675998,2.98,136.8,136.72,102.4541]
[1764090676200,2.98,136.8,136.74,0.0492873]
[1764090677600,105.3804,136.8,136.74,0.0492873]
[1764090677908,3.0,136.77,136.74,0.0492873]
[1764090678091,3.0,136.76,136.66,6.46248422]
[1764090678296,3.0,136.76,136.66,31.78248422]
[1764090679004,3.0,136.74,136.64,6.46248422]
[1764090679202,3.0,136.74,136.62,102.5299]
[1764090679203,3.0,136.71,136.7,0.05259046]
[1764090679399,3.0,136.71,136.69,0.0491967]
[1764090679593,3.0,136.71,136.63,6.46248422]
[1764090680299,3.0,136.7,136.61,6.46248422]
[1764090680493,3.0,136.66,136.64,0.05299207]
[1764090681504,3.0,136.66,136.59,6.46248422]
[1764090681505,3.0,136.65,136.55,6.46248422]
[1764090681703,3.0,136.65,136.55,109.04468422]
[1764090682010,3.0,136.71,136.58,6.46248422]
[1764090682303,127.7809,136.72,136.58,6.46248422]
[1764090682304,3.0,136.65,136.63,0.05135952]
[1764090682607,3.05079007,136.65,136.63,0.05177023]
[1764090683203,0.05079007,136.65,136.63,0.05177023]
[1764090683903,3.05079007,136.65,136.56,109.1705]
[1764090684209,3.0,136.65,136.57,102.569]
[1764090684609,3.0,136.65,136.58,6.5929]
[1764090684912,0.04678994,136.63,136.6,0.05162819]
[1764090685402,3.04678994,136.63,136.6,0.05162819]
[1764090685894,3.04678994,136.63,136.54,31.9149]
[1764090686102,3.0,136.63,136.54,31.9149]
[1764090686607,3.0,136.63,136.55,6.5944]
[1764090686799,3.0,136.63,136.54,127.9123]
[1764090686999,0.05253113,136.6,136.57,0.05549025]
[1764090687903,3.05253113,136.6,136.57,0.05549025]
[1764090688811,3.05253113,136.6,136.51,25.34]
[1764090689107,3.0,136.6,136.51,25.34]
[1764090689407,105.5808,136.56,136.44,6.46248422]
[1764090689606,105.5808,136.56,136.42,205.3571]
[1764090689607,3.0,136.54,136.42,205.3571]
[1764090689810,3.0,136.51,136.42,6.6007]
[1764090690110,3.0,136.51,136.42,102.6826]
[1764090690612,3.0,136.51,136.43,6.6002]
[1764090690804,0.05241472,136.48,136.46,0.05143061]
[1764090691010,3.0,136.55,136.46,0.05143061]
[1764090691210,3.0,136.55,136.45,102.6564]
[1764090691505,3.0,136.55,136.47,102.6421]
[1764090691711,3.0,136.55,136.48,102.6357]
[1764090692214,3.05054444,136.53,136.5,0.04785042]
[1764090694619,3.05054444,136.53,136.5,6.64475042]
[1764090694620,0.05054444,136.53,136.5,6.64475042]
[1764090695710,3.05054444,136.53,136.5,0.04785042]
[1764090695910,3.05054444,136.53,136.42,109.14448422]
[1764090696110,3.0,136.5,136.41,25.38]
[1764090696311,3.0,136.47,136.38,102.7091]
[1764090697018,0.04822572,136.44,136.41,0.05062064]
[1764090697223,3.04822572,136.44,136.41,0.05062064]
[1764090697728,3.04822572,136.44,136.33,102.7454]
[1764090697923,3.0,136.44,136.35,6.6041]
[1764090698119,3.0,136.44,136.36,102.7271]
[1764090698325,3.0,136.44,136.39,6.6023]
[1764090698629,0.05422843,136.43,136.4,0.05327803]
[1764090699521,6.46248422,136.55,136.43,102.6749]
[1764090699714,3.0,136.53,136.41,109.14618422]
[1764090700118,3.0,136.5,136.43,6.6002]
[1764090700525,3.0,136.47,136.45,0.04767231]
[1764090701226,3.0,136.47,136.4,6.6017]
[1764090701726,3.0,136.44,136.36,6.6037]
[1764090701928,3.0,136.43,136.31,102.7616]
[1764090702229,0.0500222,136.38,136.36,0.05045809]
[1764090702430,0.05313472,136.38,136.36,0.05045809]
[1764090703933,3.05313472,136.38,136.36,0.05045809]
[1764090707434,3.05313472,136.38,136.26,102.8008]
[1764090707435,3.05313472,136.38,136.26,11.23368328]
[1764090707736,3.0,136.38,136.27,25.4]
[1764090707938,3.17,136.37,136.27,25.4]
[1764090708634,0.04986006,136.33,136.31,0.05206716]
[1764090709930,3.21986006,136.33,136.31,0.05206716]
[1764090711428,3.17,136.32,136.31,0.05206716]
[1764090712634,3.21986006,136.33,136.31,0.05206716]
[1764090713035,9.82536006,136.33,136.31,0.05206716]
[1764090713239,3.17,136.32,136.31,0.05206716]
[1764090713831,0.04986006,136.33,136.31,0.05206716]
[1764090717127,102.6922,136.41,136.31,0.05206716]
[1764090717128,3.17,136.38,136.31,0.05206716]
[1764090717437,3.17,136.38,136.26,102.8001]
[1764090717438,3.17,136.38,136.27,11.23368328]
[1764090718040,3.22274069,136.34,136.31,0.05021858]
[1764090718634,0.05274069,136.34,136.31,0.05021858]
[1764090720234,0.05274069,136.34,136.32,6.6055]
[1764090720436,3.01,136.43,136.33,113.98078328]
[1764090720635,3.01,136.43,136.34,102.7415]
[1764090720838,3.01,136.43,136.36,11.23368328]
[1764090721037,25.4,136.48,136.37,102.7202]
[1764090721038,3.01,136.46,136.37,102.7202]
[1764090721439,0.04937842,136.43,136.4,0.05590178]
[1764090726244,0.04937842,136.43,136.41,6.6013]
[1764090726846,9.608,136.49,136.43,6.6003]
[1764090727040,9.608,136.49,136.4,128.13090178]
[1764090727041,3.01,136.49,136.41,102.6896]
[1764090727437,215.9552,136.54,136.43,102.6752]
[1764090727438,9.6065,136.52,136.43,102.6752]
[1764090727637,9.6065,136.52,136.51,1.78349344]
[1764090727845,9.6065,136.52,136.5,0.05454761]
[1764090728140,9.6068,136.51,136.5,0.05502001]
[1764090729146,0.04713496,136.52,136.5,0.05502001]
[1764090731653,3.05713496,136.52,136.5,0.05502001]
[1764090731948,9.65343496,136.52,136.5,0.05502001]
[1764090732149,3.01,136.5,136.39,6.6024]
[1764090732736,9.6082,136.48,136.39,6.6024]
[1764090732936,3.01,136.47,136.39,6.6024]
[1764090733140,102.6268,136.5,136.42,0.05343475]
[1764090733141,3.05953749,136.44,136.42,0.05343475]
[1764090733337,3.05771322,136.44,136.42,0.05343475]
[1764090734248,0.04771322,136.44,136.42,0.05343475]
[1764090734948,3.05771322,136.44,136.42,0.05343475]
[1764090735147,0.04771322,136.44,136.42,0.05343475]
[1764090736648,3.05771322,136.44,136.42,0.05343475]
[1764090738148,0.04771322,136.44,136.42,0.05343475]
[1764090738349,2.93771322,136.44,136.42,0.05343475]
[1764090738554,0.04771322,136.44,136.42,0.05343475]
[1764090741560,2.93771322,136.44,136.42,0.05343475]
[1764090746964,2.89,136.43,136.42,0.05343475]
[1764090747659,2.93771322,136.44,136.42,0.05343475]
[1764090749254,9.53781322,136.44,136.42,0.05343475]
[1764090749757,2.89,136.43,136.42,0.05343475]
[1764090751055,6.6014,136.42,136.36,6.6035]
[1764090751259,2.89,136.43,136.34,36.57368328]
[1764090751661,6.6011,136.42,136.35,6.6039]
[1764090751960,6.6011,136.42,136.34,36.57368328]
[1764090751961,2.89,136.42,136.34,36.57368328]
[1764090752160,0.05151198,136.39,136.37,0.05559478]
[1764090753456,0.05151198,136.39,136.37,6.65889478]
[1764090753656,0.05151198,136.39,136.37,0.05559478]
[1764090754166,2.89,136.45,136.37,0.05559478]
[1764090754363,2.89,136.45,136.38,102.7115]
[1764090754865,2.89,136.45,136.41,6.6012]
[1764090755263,0.04799789,136.44,136.42,0.05508813]
[1764090755860,0.04799789,136.44,136.42,6.65598813]
[1764090758661,0.04799789,136.44,136.42,0.05508813]
[1764090760476,0.04799789,136.44,136.42,6.65598813]
[1764090761758,0.04799789,136.44,136.42,0.05508813]
[1764090761759,2.93799789,136.44,136.42,0.05508813]
[1764090768170,9.53809789,136.44,136.42,0.05508813]
[1764090768374,2.93799789,136.44,136.42,0.05508813]
[1764090768775,0.04799789,136.44,136.42,0.05508813]
[1764090770478,3.13799789,136.44,136.42,0.05508813]
[1764090771281,9.6905,136.43,136.42,0.05508813]
[1764090771975,9.6905,136.43,136.34,18.0433511]
[1764090771976,3.09,136.43,136.34,18.0433511]
[1764090772175,3.09,136.43,136.34,24.48977946]
[1764090772478,9.6906,136.43,136.38,6.6029]
[1764090772668,3.09,136.46,136.38,128.0114]
[1764090772867,0.05128424,136.43,136.41,0.05421016]
[1764090773078,6.5983,136.48,136.41,0.05421016]
[1764090773378,6.5983,136.48,136.4,109.14102836]
[1764090774169,0.04749325,136.45,136.43,0.05276575]
[1764090774367,0.04749325,136.45,136.43,6.65306575]
[1764090777074,3.13749325,136.45,136.43,0.05276575]
[1764090777976,0.04749325,136.45,136.43,0.05276575]
[1764090778983,2.95749325,136.45,136.43,0.05276575]
[1764090779380,9.55709325,136.45,136.43,0.05276575]
[1764090780374,2.95749325,136.45,136.43,0.05276575]
[1764090781484,0.04749325,136.45,136.43,0.05276575]
[1764090782687,0.04749325,136.45,136.43,6.65326575]
[1764090783488,0.04749325,136.45,136.43,0.05276575]
[1764090784286,0.04749325,136.45,136.44,18.0433511]
[1764090784489,2.91,136.51,136.44,1.46]
[1764090784684,2.91,136.51,136.47,6.5985]
[1764090785187,2.91,136.5,136.46,18.17633627]
[1764090785382,0.05478893,136.49,136.47,0.05333253]
[1764090787895,0.05478893,136.49,136.47,6.65183253]
[1764090788084,0.05478893,136.49,136.47,24.8281688]
[1764090788285,2.91,136.53,136.47,43.5096688]
[1764090788689,2.91,136.53,136.47,50.1078688]
[1764090789091,2.91,136.53,136.47,43.5096688]
[1764090789596,0.05017253,136.51,136.48,24.62276463]
[1764090789792,0.05533862,136.51,136.48,24.67251363]
[1764090790094,0.05533862,136.51,136.48,6.49617736]
[1764090790588,0.05533862,136.51,136.49,6.5976]
[1764090791288,0.05533862,136.51,136.48,6.49617736]
[1764090791493,2.96533862,136.51,136.48,0.049749]
[1764090802097,0.05533862,136.51,136.49,2.70480767]
[1764090802497,3.09,136.54,136.48,6.48559635]
[1764090803396,3.09,136.54,136.48,0.049749]
[1764090803598,3.09,136.51,136.48,0.049749]
[1764090803896,3.09,136.51,136.48,0.05382855]
[1764090804101,3.13789549,136.52,136.48,0.05382855]
[1764090804898,3.13789549,136.52,136.48,6.65182855]
[1764090805306,3.13789549,136.52,136.48,0.05382855]
[1764090805599,3.09,136.51,136.48,0.05382855]
[1764090805899,3.09,136.5,136.48,0.05382855]
[1764090808300,0.04789549,136.52,136.48,0.05382855]
[1764090808502,0.04789549,136.52,136.49,6.43584735]
[1764090808897,0.04789549,136.52,136.5,6.5971]
[1764090809402,3.09,136.55,136.49,6.43584735]
[1764090810308,3.09,136.55,136.51,6.5962]
[1764090810501,0.051878,136.54,136.52,0.0501771]
[1764090810707,102.5412,136.61,136.53,102.5999]
[1764090810708,3.09,136.61,136.53,102.5999]
[1764090810897,3.09,136.61,136.56,6.5941]
[1764090811695,3.13655155,136.6,136.57,0.05313313]
[1764090811892,3.14276914,136.6,136.57,0.05168045]
[1764090812095,3.14276914,136.6,136.57,0.00168045]
[1764090812298,3.14276914,136.6,136.5,25.26]
[1764090812500,3.09,136.6,136.5,25.26]
[1764090813098,3.09,136.6,136.51,6.5965]
[1764090813099,6.5938,136.57,136.51,6.5965]
[1764090813299,3.13742098,136.55,136.53,0.0484134]
[1764090814608,0.04742098,136.55,136.53,0.0484134]
[1764090815304,3.13742098,136.55,136.53,0.0484134]
[1764090815701,0.04742098,136.55,136.53,0.0484134]
[1764090820707,0.04742098,136.55,136.53,6.6439134]
[1764090821319,9.6821,136.61,136.53,0.0484134]
[1764090821523,3.09,136.6,136.55,6.43584735]
[1764090822214,102.5061,136.66,136.55,6.43584735]
[1764090822215,3.09,136.66,136.56,102.5761]
[1764090822414,3.13940747,136.62,136.6,0.04722252]
[1764090822715,3.14440416,136.62,136.6,0.04722252]
[1764090823921,0.05440416,136.62,136.6,25.28722252]
[1764090824213,3.09,136.69,136.63,6.5908]
[1764090824814,9.6786,136.68,136.61,13.02724735]
[1764090825115,3.13710032,136.66,136.63,0.04734906]
[1764090825516,3.09,136.65,136.63,0.04734906]
[1764090826207,3.09,136.64,136.63,0.04734906]
[1764090826407,3.09,136.64,136.58,6.43584735]
[1764090826607,3.09,136.64,136.58,25.24]
[1764090827520,0.04668294,136.62,136.6,0.04739718]
[1764090828524,102.4903,136.68,136.61,4.21564824]
[1764090828525,2.93,136.68,136.61,4.21564824]
[1764090828712,2.93,136.68,136.63,4.21564824]
[1764090828908,9.5192,136.67,136.63,4.21564824]
[1764090829322,2.93,136.67,136.63,4.21564824]
[1764090829516,0.04776644,136.66,136.64,0.05438064]
[1764090829819,0.04776644,136.66,136.64,0.04944708]
[1764090830518,2.97776644,136.66,136.64,0.04944708]
[1764090830917,0.04776644,136.66,136.64,0.04944708]
[1764090831114,0.04776644,136.66,136.64,4.26509532]
[1764090831833,2.97776644,136.66,136.64,0.04944708]
[1764090835529,0.04776644,136.66,136.64,0.04944708]
[1764090836420,0.04776644,136.66,136.64,6.63974708]
[1764090837424,2.93,136.72,136.67,6.5886]
[1764090837815,2.93,136.72,136.68,6.5884]
[1764090838013,25.24,136.75,136.62,102.5304]
[1764090838014,2.93,136.71,136.62,102.5304]
[1764090838221,2.93,136.71,136.67,6.5887]
[1764090839616,2.93,136.71,136.65,6.64383779]
[1764090839821,2.89,136.68,136.65,0.05413779]
[1764090840129,2.89,136.68,136.65,0.05277957]
[1764090840329,2.89,136.68,136.66,6.5893]
[1764090840929,2.89,136.74,136.65,0.05277957]
[1764090841119,2.89,136.74,136.68,0.04972304]
[1764090841316,2.89,136.71,136.68,0.04972304]
[1764090842024,2.89,136.69,136.62,6.5909]
[1764090842420,2.89,136.76,136.61,25.22]
[1764090842630,2.89,136.77,136.74,1.79192922]
[1764090842842,2.89,136.77,136.69,36.40467731]
[1764090843129,2.89,136.83,136.72,17.77087731]
[1764090843330,2.89,136.83,136.73,1.5]
[1764090843537,2.89,136.83,136.73,8.0857]
[1764090843830,2.89,136.83,136.74,1.5]
[1764090844031,2.89,136.83,136.73,6.5857]
[1764090844032,2.89,136.83,136.75,1.5]
[1764090844223,2.89,136.83,136.76,1.5]
[1764090844416,2.89,136.83,136.78,1.55479959]
[1764090845521,2.89,136.88,136.78,1.55479959]
[1764090845727,2.89,136.88,136.82,0.04911272]
[1764090846033,102.3032,136.93,136.82,1.54911272]
[1764090846034,2.89,136.93,136.82,1.54911272]
[1764090846331,111.32645568,136.97,136.86,1.55477827]
[1764090846332,2.89,136.91,136.86,1.55477827]
[1764090846632,2.89,136.95,136.87,0.04925062]
[1764090846835,2.89,136.95,136.9,0.04899815]
[1764090847330,2.89,136.95,136.94,4.843e-05]
[1764090847525,2.89,136.95,136.85,1.56]
[1764090848031,2.89,136.95,136.85,115.10367731]
[1764090848228,2.89,136.95,136.86,1.56]
[1764090848433,0.05305945,136.92,136.89,0.05103747]
[1764090848734,0.05305945,136.92,136.89,1.61103747]
[1764090850731,2.94305945,136.92,136.89,0.05103747]
[1764090852340,0.05305945,136.92,136.9,1.56]
[1764090854622,0.05305945,136.92,136.89,0.05103747]
[1764090854828,2.94305945,136.92,136.89,0.05103747]
[1764090856338,2.94305945,136.92,136.89,1.61103747]
[1764090856339,0.05305945,136.92,136.89,1.61103747]
[1764090856936,2.94305945,136.92,136.89,0.05103747]
[1764090857130,2.94305945,136.92,136.9,1.55]
[1764090857131,0.05305945,136.92,136.9,1.55]
[1764090857435,2.97,137.03,136.92,8.1266]
[1764090857843,2.97,137.03,136.93,6.5762]
[1764090858550,2.97,137.03,136.97,0.04754966]
[1764090858834,9.5418,137.03,136.97,0.04754966]
[1764090859029,2.97,137.0,136.92,6.5766]
[1764090859232,2.97,137.0,136.89,130.706]
[1764090859534,2.97,137.0,136.94,6.5757]
[1764090860032,2.97,137.0,136.96,0.05489461]
[1764090860238,3.020381,136.98,136.96,0.05489461]
[1764090860440,3.02004904,136.98,136.96,0.05489461]
[1764090863338,3.02004904,136.98,136.89,3.1]
[1764090863534,2.97,136.98,136.89,3.1]
[1764090863739,2.97,136.98,136.86,3.1]
[1764090863740,2.97,136.94,136.86,3.1]
[1764090864038,2.97,136.92,136.83,25.28]
[1764090864231,2.97,136.88,136.8,6.5826]
[1764090864431,3.01690856,136.85,136.83,0.0527591]
[1764090864740,0.05378192,136.85,136.83,9.73009015]
[1764090865043,2.97,136.9,136.83,3.14919015]
[1764090865239,2.97,136.9,136.83,0.04919015]
[1764090865946,2.97,136.87,136.83,0.04919015]
[1764090866641,2.97,136.86,136.83,0.04919015]
[1764090866942,0.05149369,136.88,136.83,0.04919015]
[1764090866943,3.02149369,136.88,136.83,0.04919015]
[1764090868638,3.02149369,136.88,136.83,6.63019015]
[1764090869044,3.02149369,136.88,136.84,6.5805]
[1764090869239,3.02149369,136.88,136.83,3.14919015]
[1764090869443,3.02149369,136.88,136.83,0.04919015]
[1764090869938,0.05149369,136.88,136.84,3.1]
[1764090870145,0.05149369,136.88,136.86,3.1]
[1764090870338,0.05149369,136.88,136.85,105.4589]
[1764090870645,0.05149369,136.88,136.86,6.5796]
[1764090871032,2.97,136.93,136.87,3.1]
[1764090871243,8.51436003,136.97,136.89,105.4271]
[1764090871433,2.97,136.97,136.96,1.76680494]
[1764090871744,2.97,137.01,136.93,6.5761]
[1764090872146,2.97,137.01,136.96,0.04925272]
[1764090872944,2.97,136.99,136.91,6.5772]
[1764090873242,2.97,136.99,136.91,3.1]
[1764090873559,2.97,137.01,136.93,105.3998]
[1764090873943,0.04925272,136.98,136.96,6.62155781]
[1764090874336,3.01925272,136.98,136.96,0.04685781]
[1764090874540,3.01925272,136.98,136.89,3.1]
[1764090874844,2.97,136.98,136.87,102.3429]
[1764090875247,2.97,136.98,136.87,105.4429]
[1764090875440,2.97,136.98,136.91,0.05255566]
[1764090875441,3.01929953,136.94,136.91,0.05255566]
[1764090875649,3.01929953,136.94,136.83,105.4706]
[1764090875854,2.97,136.93,136.83,3.1]
[1764090876146,2.97,136.91,136.83,3.1]
[1764090876845,3.02072298,136.88,136.86,0.05274233]
[1764090878351,0.05072298,136.88,136.86,0.05274233]
[1764090878650,3.02072298,136.88,136.86,0.05274233]
[1764090882342,0.05072298,136.88,136.86,0.05274233]
[1764090882544,3.02072298,136.88,136.86,0.05274233]
[1764090883141,0.05072298,136.88,136.86,0.05274233]
[1764090884150,3.02072298,136.88,136.86,0.05274233]
[1764090886742,3.02072298,136.88,136.8,3.1]
[1764090887160,8.75216729,136.87,136.8,3.1]
[1764090887349,3.13,136.87,136.8,3.1]
[1764090887552,3.13,136.87,136.78,108.81675874]
[1764090887856,3.13,136.87,136.81,0.04687402]
[1764090887857,3.17921404,136.84,136.81,0.04687402]
[1764090888558,0.04921404,136.84,136.81,3.14687402]
[1764090890055,5.62756509,136.89,136.82,3.1]
[1764090890253,3.13,136.9,136.82,3.1]
[1764090890461,5.6295065,136.89,136.82,3.1]
[1764090890659,3.13,136.9,136.82,3.1]
[1764090890859,5.62962509,136.89,136.85,3.1]
[1764090891061,0.0535162,136.88,136.86,0.04913388]
[1764090891759,0.0535162,136.88,136.86,3.14913388]
[1764090892648,0.0535162,136.88,136.86,9.72883388]
[1764090892849,0.0535162,136.88,136.86,3.14913388]
[1764090893962,0.0535162,136.88,136.86,0.04913388]
[1764090894466,0.0535162,136.88,136.86,3.14913388]
[1764090895264,0.0535162,136.88,136.86,0.04913388]
[1764090896664,0.0535162,136.88,136.86,3.14913388]
[1764090897958,0.0535162,136.88,136.86,9.72883388]
[1764090898761,3.13,136.92,136.86,6.45629262]
[1764090899565,0.04795046,136.9,136.86,6.45629262]
[1764090899769,3.14795046,136.9,136.86,0.04913388]
[1764090900367,0.04795046,136.9,136.88,2.96]
[1764090900569,3.1,136.96,136.88,2.96]
[1764090900763,9.675,136.96,136.95,0.00215561]
[1764090901061,3.1,136.94,136.86,6.5797]
[1764090901259,3.1,136.93,136.83,2.96]
[1764090901461,0.04634385,136.89,136.87,0.05264343]
[1764090901661,0.04812375,136.89,136.87,0.05264343]
[1764090902563,0.04812375,136.89,136.87,3.01264343]
[1764090903371,0.04812375,136.89,136.87,0.05264343]
[1764090904963,3.14812375,136.89,136.87,0.05264343]
[1764090905566,9.72652375,136.89,136.87,0.05264343]
[1764090905770,3.1,136.88,136.87,0.05264343]
[1764090906660,3.1,136.88,136.8,133.14782]
[1764090906661,3.1,136.84,136.8,27.79352]
[1764090907060,3.1,136.89,136.8,37.33602]
[1764090907267,3.1,136.89,136.82,2.96]
[1764090907571,0.05150764,136.87,136.84,0.05471435]
[1764090908970,3.1,136.86,136.84,0.05471435]
[1764090909372,3.1,136.86,136.8,27.79352]
[1764090909373,3.1,136.85,136.8,27.79352]
[1764090909573,3.1,136.82,136.8,27.79352]
[1764090909880,105.4881,136.82,136.73,2.96]
[1764090910072,6.5833,136.79,136.73,2.96]
[1764090910375,0.05523579,136.77,136.75,0.05526314]
[1764090910572,0.04787082,136.77,136.75,0.05526314]
[1764090914876,6.5858,136.74,136.66,2.96]
[1764090915077,102.4242,136.77,136.66,2.96]
[1764090915278,102.4209,136.77,136.66,9.5491]
[1764090915579,6.5853,136.75,136.66,9.5491]
[1764090915973,0.05125698,136.72,136.69,0.04935384]
[1764090916173,0.05125698,136.72,136.69,3.00935384]
[1764090916382,0.05125698,136.72,136.69,0.04935384]
[1764090917487,6.63805698,136.72,136.69,0.04935384]
[1764090918074,0.05125698,136.72,136.69,3.03935384]
[1764090919475,25.32,136.77,136.7,2.99]
[1764090920076,6.5839,136.78,136.7,2.99]
[1764090920476,0.05017218,136.75,136.73,0.04693998]
[1764090921069,0.05017218,136.75,136.73,3.03693998]
[1764090922888,0.05017218,136.75,136.73,0.04693998]
[1764090924488,0.05017218,136.75,136.73,3.03693998]
[1764090928477,6.63537218,136.75,136.73,0.04693998]
[1764090928682,102.4528,136.73,136.62,6.40715874]
[1764090928986,102.4528,136.73,136.63,2.99]
[1764090929191,102.4651,136.71,136.63,2.99]
[1764090929586,6.64483946,136.68,136.66,0.05125913]
[1764090929788,0.05623946,136.68,136.66,0.05125913]
[1764090931186,0.05623946,136.68,136.66,3.04125913]
[1764090932593,0.05623946,136.68,136.66,0.05125913]
[1764090933194,6.64473946,136.68,136.66,0.05125913]
[1764090934793,0.05623946,136.68,136.66,3.04125913]
[1764090935793,6.5864,136.73,136.67,2.99]
[1764090935997,25.32,136.75,136.66,1.51125913]
[1764090935998,25.32,136.75,136.69,2.99]
[1764090936201,102.4131,136.78,136.69,2.99]
[1764090936693,6.5852,136.75,136.69,2.99]
[1764090936890,102.42,136.77,136.69,2.99]
[1764090937196,6.63384392,136.74,136.72,0.04778028]
[1764090939104,6.63384392,136.74,136.72,3.03778028]
[1764090939401,0.04824392,136.74,136.72,3.03778028]
[1764090940502,0.04824392,136.74,136.72,0.04778028]
[1764090942193,6.63404392,136.74,136.72,0.04778028]
[1764090942790,6.5864,136.73,136.68,2.99]
[1764090943106,0.04824392,136.74,136.66,2.99]
[1764090943402,127.7787,136.75,136.66,2.99]
[1764090943804,0.05021243,136.72,136.69,0.05106804]
[1764090944395,0.05021243,136.72,136.69,3.04106804]
[1764090946206,0.05021243,136.72,136.69,0.05106804]
[1764090947293,6.5871,136.71,136.69,0.05106804]
[1764090947500,102.4653,136.71,136.62,3.12]
[1764090948206,102.4801,136.69,136.62,3.12]
[1764090948400,0.05487183,136.67,136.64,0.05471515]
[1764090949201,0.05487183,136.67,136.64,3.17471515]
[1764090950900,6.64387183,136.67,136.64,3.17471515]
[1764090953308,0.05487183,136.67,136.64,3.17471515]
[1764090954307,6.64387183,136.67,136.64,3.17471515]
[1764090957509,6.5895,136.66,136.64,0.05471515]
[1764090960718,6.5924,136.6,136.57,2.99]
[1764090961014,102.5284,136.63,136.57,2.99]
[1764090961217,102.5059,136.66,136.57,2.99]
[1764090961404,25.32,136.67,136.57,2.99]
[1764090961717,0.0510632,136.63,136.61,3.04285252]
[1764090962516,6.6419632,136.63,136.61,0.05285252]
[1764090963824,0.0510632,136.63,136.61,3.04285252]
[1764090965328,0.0510632,136.63,136.61,0.05285252]
[1764090966129,0.0510632,136.63,136.61,3.04285252]
[1764090970735,0.0510632,136.63,136.61,0.05285252]
[1764090972429,0.0510632,136.63,136.61,3.04285252]
[1764090973641,6.6419632,136.63,136.61,3.04285252]
[1764090974535,6.6419632,136.63,136.61,0.05285252]
[1764090975936,6.5933,136.58,136.51,2.99]
[1764090976439,6.5933,136.58,136.52,2.99]
[1764090976636,6.5939,136.57,136.52,2.99]
[1764090976838,0.05193831,136.56,136.54,2.99]
[1764090977039,0.05193831,136.56,136.53,0.04684878]
[1764090977236,0.05193831,136.56,136.53,3.21684878]
[1764090978741,6.64623831,136.56,136.53,0.04684878]
[1764090978946,0.05193831,136.56,136.53,0.04684878]
[1764090979137,102.63273831,136.56,136.53,0.04684878]
[1764090979343,6.5949,136.55,136.53,0.04684878]
[1764090983144,102.63273831,136.56,136.53,3.21684878]
[1764090983336,0.05193831,136.56,136.53,3.21684878]
[1764090984347,6.64623831,136.56,136.53,3.21684878]
[1764090985651,0.05193831,136.56,136.53,3.21684878]
[1764090986252,6.64623831,136.56,136.53,3.21684878]
[1764090986945,6.5948,136.55,136.53,3.21684878]
[1764090987552,6.5948,136.55,136.53,0.04684878]
[1764090987751,6.5948,136.55,136.53,3.21684878]
[1764090989246,6.5948,136.55,136.53,0.04684878]
[1764090989754,6.5948,136.55,136.53,3.21684878]
[1764090990850,6.5948,136.55,136.53,0.04684878]
[1764090992156,102.63563831,136.56,136.46,3.17]
[1764090992454,102.5837,136.56,136.46,3.17]
[1764090992956,25.36,136.59,136.48,3.17]
[1764090993252,0.05426425,136.55,136.52,3.22576572]
[1764090994153,0.05426425,136.55,136.52,9.82186572]
[1764090994458,0.05426425,136.55,136.53,3.17]
[1764090995348,25.36,136.61,136.54,3.17]
[1764090995551,6.5926,136.6,136.54,3.17]
[1764090995746,25.36,136.61,136.54,3.17]
[1764090996252,127.9031,136.61,136.54,3.17]
[1764090996456,0.05568493,136.59,136.56,0.05368458]
[1764090996845,6.5933,136.58,136.56,0.05368458]
[1764090998756,6.5933,136.58,136.49,3.17]
[1764090998757,102.5862,136.55,136.49,3.17]
[1764090999058,127.9409,136.56,136.49,3.17]
[1764090999756,102.64689578,136.54,136.51,0.05367983]
[1764091000161,6.5957,136.53,136.51,0.05367983]
[1764091000456,102.6094,136.52,136.44,3.17]
[1764091000652,6.5969,136.51,136.44,3.17]
[1764091001045,102.5925,136.54,136.44,3.17]
[1764091001248,102.6081,136.52,136.44,3.17]
[1764091001449,0.05365623,136.49,136.47,0.05246859]
[1764091002362,0.05365623,136.49,136.47,3.22246859]
[1764091003760,0.05365623,136.49,136.47,0.05246859]